fUSD/lending_fUSD_20241210
["ID","MTS","AMOUNT","RATE_DAILY","PERIOD"]
[344848344,1733831438498,-500.0,0.00011099,2]
[344848345,1733831438507,-500.0,0.00011099,2]
[344848346,1733831438516,-320.62437162,0.00011099,2]
[344848347,1733831438526,-500.0,0.00011099,2]
[344848349,1733831438536,-500.0,0.00011099,2]
[344848351,1733831438545,-500.0,0.00011099,2]
[344848352,1733831438554,-500.0,0.00011099,2]
[344848353,1733831438563,-500.0,0.00011099,2]
[344848354,1733831438572,-500.0,0.00011099,2]
[344848355,1733831438581,-500.0,0.00011099,2]
[344848356,1733831438590,-500.0,0.00011099,2]
[344848357,1733831438599,-500.0,0.00011099,2]
[344848358,1733831438607,-500.0,0.00011099,2]
[344848359,1733831438616,-500.0,0.00011099,2]
[344848360,1733831438625,-500.0,0.00011099,2]
[344848361,1733831438634,-500.0,0.00011099,2]
[344848362,1733831438643,-419.26398182,0.00011099,2]
[344848363,1733831438651,-500.0,0.00011099,2]
[344848365,1733831438660,-500.0,0.00011099,2]
[344848367,1733831438669,-500.0,0.00011099,2]
[344848369,1733831438679,-500.0,0.00011099,2]
[344848371,1733831438690,-500.0,0.00011099,2]
[344848373,1733831438700,-500.0,0.00011099,2]
[344848375,1733831438709,-500.0,0.00011099,2]
[344848377,1733831438718,-500.0,0.00011099,2]
[344848379,1733831438728,-500.0,0.00011099,2]
[344848381,1733831438737,-500.0,0.00011099,2]
[344848382,1733831438746,-604.8893374,0.00011099,2]
[344848384,1733831438755,-500.0,0.00011099,2]
[344848386,1733831438766,-500.0,0.00011099,2]
[344848388,1733831438776,-500.0,0.00011099,2]
[344848390,1733831438787,-343.22778068,0.00011099,2]
[344848391,1733831438796,-500.0,0.00011099,2]
[344848392,1733831438805,-500.0,0.00011099,2]
[344848393,1733831438814,-500.0,0.00011099,2]
[344848394,1733831438823,-500.0,0.00011099,2]
[344848395,1733831438832,-500.0,0.00011099,2]
[344848396,1733831438842,-500.0,0.00011099,2]
[344848397,1733831438851,-500.0,0.00011099,2]
[344848398,1733831438860,-565.168958,0.00011099,2]
[344848399,1733831438870,-500.0,0.00011099,2]
[344848400,1733831438880,-500.0,0.00011099,2]
[344848401,1733831438889,-500.0,0.00011099,2]
[344848402,1733831438898,-500.0,0.00011099,2]
[344848403,1733831438908,-500.0,0.00011099,2]
[344848404,1733831438918,-500.0,0.00011099,2]
[344848405,1733831438927,-205.38,0.00011099,2]
[344848406,1733831438937,-500.0,0.00011099,2]
[344848407,1733831438946,-500.0,0.00011099,2]
[344848408,1733831438956,-500.0,0.00011099,2]
[344848409,1733831438965,-500.0,0.00011099,2]
[344848410,1733831438975,-500.0,0.00011099,2]
[344848411,1733831438984,-500.0,0.00011099,2]
[344848412,1733831438995,-500.0,0.00011099,2]
[344848413,1733831439003,-557.64,0.00011099,2]
[344848414,1733831439013,-500.0,0.00011099,2]
[344848415,1733831439022,-500.0,0.00011099,2]
[344848416,1733831439033,-500.0,0.00011099,2]
[344848417,1733831439043,-500.0,0.00011099,2]
[344848418,1733831439052,-556.71,0.00011099,2]
[344848419,1733831439061,-582.65,0.00011099,2]
[344848420,1733831439070,-582.65,0.00011099,2]
[344848421,1733831439079,-582.65,0.00011099,2]
[344848422,1733831439089,-582.65,0.00011099,2]
[344848423,1733831439098,-582.65,0.00011099,2]
[344848424,1733831439107,-582.65,0.00011099,2]
[344848425,1733831439116,-582.65,0.00011099,2]
[344848426,1733831439125,-582.65,0.00011099,2]
[344848427,1733831439134,-582.65,0.00011099,2]
[344848428,1733831439144,-582.65,0.00011099,2]
[344848429,1733831439153,-582.65,0.00011099,2]
[344848430,1733831439162,-582.65,0.00011099,2]
[344848431,1733831439171,-582.65,0.00011099,2]
[344848432,1733831439180,-582.65,0.00011099,2]
[344848433,1733831439190,-582.65,0.00011099,2]
[344848434,1733831439199,-582.65,0.00011099,2]
[344848435,1733831439208,-582.65,0.00011099,2]
[344848436,1733831439218,-582.65,0.00011099,2]
[344848437,1733831439228,-582.65,0.00011099,2]
[344848438,1733831439238,-582.65,0.00011099,2]
[344848439,1733831439247,-582.65,0.00011099,2]
[344848440,1733831439255,-582.65,0.00011099,2]
[344848441,1733831439264,-582.65,0.00011099,2]
[344848442,1733831439272,-582.74023881,0.00011099,2]
[344848443,1733831439281,-500.0,0.00011099,2]
[344848444,1733831439290,-500.0,0.00011099,2]
[344848445,1733831439298,-413.1,0.00011099,2]
[344848446,1733831439307,-500.0,0.00011099,2]
[344848447,1733831439316,-500.0,0.00011099,2]
[344848448,1733831439325,-500.0,0.00011099,2]
[344848449,1733831439334,-500.0,0.00011099,2]
[344848450,1733831439344,-1154.0,0.00011099,2]
[344848451,1733831439353,-5300230.35624737,0.000111,2]
[344848452,1733831439362,-226377.11246475,0.000111,2]
[344848453,1733831439371,-570.149,0.000111,2]
[344848454,1733831439381,-1262.0,0.000111,2]
[344848455,1733831439390,-634.123,0.000111,2]
[344848456,1733831439400,-2005.0,0.000111,2]
[344848457,1733831439409,-150.0,0.000111,2]
[344848458,1733831439419,-564.0,0.000111,2]
[344848459,1733831439428,-1894.0,0.000111,2]
[344848460,1733831439438,-1253.0,0.000111,2]
[344848461,1733831439448,-817.0,0.000111,2]
[344848462,1733831439457,-3763.0,0.000111,2]
[344848463,1733831439467,-973.0,0.000111,2]
[344848464,1733831439476,-3595.0,0.000111,2]
[344848465,1733831439485,-536.565,0.000111,2]
[344848466,1733831439495,-250.0,0.000111,2]
[344848467,1733831439505,-150.0,0.000111,2]
[344848468,1733831439515,-167.0,0.000111,2]
[344848469,1733831439524,-156.095,0.000111,2]
[344848470,1733831439536,-5967.0,0.000111,2]
[344848471,1733831439546,-981.704,0.000111,2]
[344848472,1733831439556,-227.0,0.000111,2]
[344848473,1733831439565,-1098.0,0.000111,2]
[344848474,1733831439574,-1468076.30192287,0.000111,2]
[344848475,1733831439614,-1596.97,0.000111,2]
[344848479,1733831440124,-500.0,0.00011099,2]
[344848480,1733831440134,-500.0,0.00011099,2]
[344848481,1733831440143,-500.0,0.00011099,2]
[344848482,1733831440153,-500.0,0.00011099,2]
[344848483,1733831440163,-7722.88527411,0.000111,2]
[344848484,1733831440176,-1956.15011095,0.000111,2]
[344848485,1733831440218,-610.58452219,0.000111,2]
[344848500,1733831443139,-500.0,0.00011099,2]
[344848501,1733831443149,-500.0,0.00011099,2]
[344848502,1733831443159,-500.0,0.00011099,2]
[344848503,1733831443169,-500.0,0.00011099,2]
[344848504,1733831443179,-500.0,0.00011099,2]
[344848505,1733831443190,-500.0,0.00011099,2]
[344848506,1733831443199,-500.0,0.00011099,2]
[344848507,1733831443209,-500.0,0.00011099,2]
[344848508,1733831443219,-500.0,0.00011099,2]
[344848509,1733831443229,-500.0,0.00011099,2]
[344848510,1733831443239,-500.0,0.00011099,2]
[344848511,1733831443248,-2496750.0,0.000111,2]
[344848512,1733831443311,-1000.34684308,0.000111,2]
[344848513,1733831443323,-1720.00000046,0.000111,2]
[344848516,1733831446027,-500.0,0.00011099,2]
[344848517,1733831446034,-328.01,0.00011099,2]
[344848518,1733831446041,-250.0,0.000111,2]
[344848519,1733831446049,-32228.98999,0.000111,2]
[344848520,1733831446060,-755.55927431,0.000111,2]
[344848539,1733832632091,-413.21193929,7.963e-05,2]
[344848540,1733832632105,-16.20724229,7.963e-05,2]
[344848541,1733832632116,-1056.0,8.382e-05,2]
[344848542,1733832632128,-425.16,8.396e-05,2]
[344848543,1733832632140,-1056.0,8.823e-05,2]
[344848544,1733832632152,-1056.0,9.288e-05,2]
[344848545,1733832632163,-1056.0,9.776e-05,2]
[344848546,1733832632174,-1776.81,9.868e-05,2]
[344848547,1733832632186,-436.43,0.00010064,2]
[344848548,1733832632198,-250.0,0.00010161,2]
[344848549,1733832632210,-303.97353962,0.00010163,2]
[344848550,1733832632231,-389.44646038,0.00010163,2]
[344848551,1733832632242,-1056.0,0.00010291,2]
[344848552,1733832632254,-1000.0,0.0001035,2]
[344848553,1733832632264,-182.54,0.00010403,2]
[344848554,1733832632276,-436.43,0.00010436,2]
[344848555,1733832632287,-878.44,0.00010447,2]
[344848556,1733832632297,-296.316,0.0001055,2]
[344848557,1733832632308,-151.081658,0.00010554,2]
[344848558,1733832632319,-425.16,0.0001066,2]
[344848559,1733832632330,-942.51,0.000107,2]
[344848560,1733832632340,-436.43,0.00010809,2]
[344848561,1733832632352,-1056.0,0.00010833,2]
[344848562,1733832632363,-200.0,0.00011011,2]
[344848563,1733832632373,-59.05676166,0.00011023,2]
[344848564,1733832632396,-90.94323834,0.00011023,2]
[344848565,1733832632406,-159.791776,0.00011073,2]
[344848566,1733832632416,-500.0,0.00011073,2]
[344848567,1733832632426,-150.0,0.00011078,2]
[344848568,1733832632436,-219.26498566,0.00011079,2]
[344848569,1733832632452,-911.39945238,0.00011079,2]
[344848570,1733832632473,-1373.6,0.00011079,2]
[344848571,1733832632487,-277.96246259,0.00011079,2]
[344848578,1733832637993,-13737.7445,0.00011079,2]
[344848579,1733832638258,-43480.02859937,0.00011079,2]
[344848580,1733832638269,-1082498.71515831,0.0001108,2]
[344848581,1733832638280,-1130.472,0.00011097,2]
[344848582,1733832638291,-500.0,0.00011097,2]
[344848583,1733832638302,-500.0,0.00011097,2]
[344848584,1733832638312,-500.0,0.00011097,2]
[344848585,1733832638323,-288.28,0.00011097,2]
[344848586,1733832638334,-500.0,0.00011097,2]
[344848587,1733832638344,-500.0,0.00011097,2]
[344848588,1733832638355,-500.0,0.00011097,2]
[344848589,1733832638366,-500.0,0.00011097,2]
[344848590,1733832638376,-500.0,0.00011097,2]
[344848591,1733832638387,-500.0,0.00011097,2]
[344848592,1733832638397,-500.0,0.00011097,2]
[344848593,1733832638408,-363.57956744,0.00011097,2]
[344848594,1733832638418,-500.0,0.00011097,2]
[344848595,1733832638428,-500.0,0.00011097,2]
[344848596,1733832638439,-500.0,0.00011097,2]
[344848597,1733832638450,-500.0,0.00011097,2]
[344848599,1733832638461,-500.0,0.00011097,2]
[344848601,1733832638471,-587.12,0.00011097,2]
[344848603,1733832638482,-548.68,0.00011097,2]
[344848604,1733832638493,-500.0,0.00011097,2]
[344848605,1733832638506,-500.0,0.00011097,2]
[344848607,1733832638517,-500.0,0.00011097,2]
[344848608,1733832638528,-431.32,0.00011097,2]
[344848609,1733832638539,-500.0,0.00011097,2]
[344848610,1733832638549,-513.58,0.00011097,2]
[344848612,1733832638559,-500.0,0.00011097,2]
[344848613,1733832638570,-500.0,0.00011097,2]
[344848614,1733832638580,-349.85,0.00011097,2]
[344848615,1733832638591,-500.0,0.00011097,2]
[344848616,1733832638601,-500.0,0.00011097,2]
[344848617,1733832638612,-500.0,0.00011097,2]
[344848618,1733832638623,-500.0,0.00011097,2]
[344848619,1733832638634,-500.0,0.00011097,2]
[344848620,1733832638645,-500.0,0.00011097,2]
[344848621,1733832638655,-500.0,0.00011097,2]
[344848622,1733832638666,-451.83,0.00011097,2]
[344848623,1733832638676,-563.17,0.00011097,2]
[344848624,1733832638686,-500.0,0.00011097,2]
[344848625,1733832638697,-500.0,0.00011097,2]
[344848626,1733832638707,-500.0,0.00011097,2]
[344848627,1733832638718,-157.35,0.00011097,2]
[344848628,1733832638728,-500.0,0.00011097,2]
[344848629,1733832638739,-500.0,0.00011097,2]
[344848630,1733832638751,-500.0,0.00011097,2]
[344848631,1733832638762,-500.0,0.00011097,2]
[344848632,1733832638773,-500.0,0.00011097,2]
[344848633,1733832638784,-500.0,0.00011097,2]
[344848634,1733832638795,-500.0,0.00011097,2]
[344848635,1733832638806,-627.61,0.00011097,2]
[344848636,1733832638816,-500.0,0.00011097,2]
[344848637,1733832638827,-500.0,0.00011097,2]
[344848638,1733832638838,-500.0,0.00011097,2]
[344848639,1733832638849,-500.0,0.00011097,2]
[344848640,1733832638859,-500.0,0.00011097,2]
[344848641,1733832638870,-500.0,0.00011097,2]
[344848642,1733832638880,-500.0,0.00011097,2]
[344848643,1733832638891,-500.0,0.00011097,2]
[344848644,1733832638901,-586.28,0.00011097,2]
[344848645,1733832638912,-500.0,0.00011097,2]
[344848646,1733832638923,-500.0,0.00011097,2]
[344848647,1733832638934,-500.0,0.00011097,2]
[344848648,1733832638944,-500.0,0.00011097,2]
[344848649,1733832638955,-500.0,0.00011097,2]
[344848650,1733832638965,-500.0,0.00011097,2]
[344848651,1733832638975,-500.0,0.00011097,2]
[344848652,1733832638986,-500.0,0.00011097,2]
[344848653,1733832638996,-500.0,0.00011097,2]
[344848654,1733832639009,-500.0,0.00011097,2]
[344848655,1733832639020,-529.42,0.00011097,2]
[344848656,1733832639030,-500.0,0.00011097,2]
[344848657,1733832639041,-500.0,0.00011097,2]
[344848658,1733832639051,-500.0,0.00011097,2]
[344848659,1733832639065,-500.0,0.00011097,2]
[344848660,1733832639076,-351.52014302,0.00011097,2]
[344848661,1733832639085,-500.0,0.00011097,2]
[344848662,1733832639095,-500.0,0.00011097,2]
[344848663,1733832639108,-557.64,0.00011097,2]
[344848664,1733832639118,-500.0,0.00011097,2]
[344848665,1733832639129,-500.0,0.00011097,2]
[344848666,1733832639141,-500.0,0.00011097,2]
[344848667,1733832639153,-500.0,0.00011097,2]
[344848668,1733832639163,-500.0,0.00011097,2]
[344848669,1733832639173,-500.0,0.00011097,2]
[344848670,1733832639184,-500.0,0.00011097,2]
[344848671,1733832639194,-500.0,0.00011097,2]
[344848672,1733832639205,-500.0,0.00011097,2]
[344848673,1733832639215,-283.55,0.00011097,2]
[344848674,1733832639226,-582.65,0.00011097,2]
[344848675,1733832639237,-582.65,0.00011097,2]
[344848676,1733832639248,-582.65,0.00011097,2]
[344848677,1733832639259,-582.65,0.00011097,2]
[344848678,1733832639269,-582.65,0.00011097,2]
[344848679,1733832639279,-582.65,0.00011097,2]
[344848680,1733832639289,-582.65,0.00011097,2]
[344848681,1733832639300,-582.65,0.00011097,2]
[344848682,1733832639311,-582.65,0.00011097,2]
[344848683,1733832639321,-582.65,0.00011097,2]
[344848684,1733832639332,-582.65,0.00011097,2]
[344848685,1733832639343,-582.65,0.00011097,2]
[344848686,1733832639353,-582.65,0.00011097,2]
[344848687,1733832639364,-582.65,0.00011097,2]
[344848688,1733832639374,-582.65,0.00011097,2]
[344848689,1733832639385,-582.65,0.00011097,2]
[344848690,1733832639395,-582.65,0.00011097,2]
[344848691,1733832639406,-500.0,0.00011097,2]
[344848692,1733832639416,-500.0,0.00011097,2]
[344848693,1733832639427,-500.0,0.00011097,2]
[344848694,1733832639438,-500.0,0.00011097,2]
[344848695,1733832639448,-500.0,0.00011097,2]
[344848696,1733832639458,-500.0,0.00011097,2]
[344848697,1733832639468,-500.0,0.00011097,2]
[344848698,1733832639479,-500.0,0.00011097,2]
[344848699,1733832639489,-340.08929248,0.00011097,2]
[344848700,1733832639499,-500.0,0.00011097,2]
[344848701,1733832639511,-500.0,0.00011097,2]
[344848702,1733832639521,-500.0,0.00011097,2]
[344848703,1733832639532,-500.0,0.00011097,2]
[344848704,1733832639542,-500.0,0.00011097,2]
[344848705,1733832639553,-500.0,0.00011097,2]
[344848706,1733832639563,-500.0,0.00011097,2]
[344848707,1733832639574,-607.93,0.00011097,2]
[344848708,1733832639584,-1104.0,0.00011098,2]
[344848709,1733832639596,-4108241.92592419,0.00011098,2]
[344848710,1733832639607,-582.65,0.00011099,2]
[344848711,1733832639617,-582.65,0.00011099,2]
[344848712,1733832639627,-582.65,0.00011099,2]
[344848713,1733832639638,-582.65,0.00011099,2]
[344848714,1733832639648,-582.65,0.00011099,2]
[344848715,1733832639658,-582.65,0.00011099,2]
[344848716,1733832639669,-582.74023881,0.00011099,2]
[344848717,1733832639679,-1790176.93566064,0.000111,2]
[344848718,1733832640234,-1086.00001,0.000111,2]
[344848719,1733832640246,-1837.14547186,0.000111,2]
[344848720,1733832640259,-713.27742779,0.000111,2]
[344848721,1733832640271,-509.1451915,0.000111,2]
[344848722,1733832640282,-1299.83874483,0.000111,2]
[344848723,1733832640299,-5405.45253584,0.000111,2]
[344849002,1733832643089,-500.0,0.00011073,2]
[344849004,1733832643099,-1568.39413204,0.000111,2]
[344849006,1733832643110,-13909.12521996,0.000111,2]
[344849010,1733832643198,-16747.30504466,0.000111,2]
[344849011,1733832643208,-5194.1298,0.000111,2]
[344849014,1733832643295,-3383.18315841,0.000111,2]
[344849015,1733832643307,-18002.067679,0.000111,2]
[344849040,1733832646025,-1034.05360558,0.00011099,2]
[344849041,1733832646037,-13.94639442,0.00011099,2]
[344849042,1733832646047,-27411.34854969,0.000111,2]
[344849043,1733832646058,-124694.98187155,0.000111,2]
[344849044,1733832646079,-559.93185681,0.000111,2]
[344849045,1733832646212,-1118.0,0.000111,2]
[344849046,1733832646240,-29195.099,0.000111,2]
[344849047,1733832646251,-4919.07120143,0.000111,2]
[344849048,1733832646346,-1158.36,0.000111,2]
[344849049,1733832646358,-740.40033588,0.000111,2]
[344849050,1733832646369,-430.80781345,0.000111,2]
[344849051,1733832646404,-729.12371714,0.000111,2]
[344849052,1733832646416,-739.75508359,0.000111,2]
[344849053,1733832646427,-754.70118,0.000111,2]
[344849057,1733833651232,11711.0,1e-06,7]
[344849058,1733833651267,10000.0,1e-06,7]
[344849059,1733833651292,10000.0,1e-06,7]
[344849060,1733833651314,10000.0,1e-06,7]
[344849061,1733833651336,6551.81893629,1e-06,7]
[344849095,1733833832401,-382.64,8.219e-05,2]
[344849096,1733833832411,-1000.0,0.00010081,2]
[344849097,1733833832421,-200.0,0.00010081,2]
[344849098,1733833832434,-3402.6,0.00010081,2]
[344849099,1733833832445,-250.0,0.00010113,2]
[344849100,1733833832455,-300.0,0.00010156,2]
[344849101,1733833832464,-3120.81,0.00010157,2]
[344849102,1733833832475,-445.26,0.00010168,2]
[344849103,1733833832484,-150.0,0.00010215,2]
[344849104,1733833832494,-250.0,0.0001025,2]
[344849105,1733833832503,-382.64,0.00010482,2]
[344849106,1733833832513,-166.7,0.00010508,2]
[344849107,1733833832524,-284.003,0.0001055,2]
[344849108,1733833832533,-435.39,0.000106,2]
[344849109,1733833832543,-435.39,0.000106,2]
[344849110,1733833832554,-181.64,0.00010642,2]
[344849111,1733833832565,-150.0,0.00010863,2]
[344849112,1733833832575,-206.88348069,0.0001097,2]
[344849113,1733833832585,-206.88348069,0.00010977,2]
[344849114,1733833832596,-206.88348069,0.00010982,2]
[344849115,1733833832606,-206.88348069,0.00010988,2]
[344849116,1733833832616,-206.88348069,0.00010992,2]
[344849117,1733833832626,-206.88348069,0.00010997,2]
[344849118,1733833832636,-1507.2143,0.00011,2]
[344849119,1733833832648,-513.79048712,0.00011,2]
[344849120,1733833832657,-200.0,0.00011011,2]
[344849121,1733833832667,-159.97720307,0.00011073,2]
[344849122,1733833832676,-150.0,0.00011076,2]
[344849123,1733833832685,-500.0,0.00011077,2]
[344849124,1733833832695,-1098.89,0.00011077,2]
[344849125,1733833832704,-500.0,0.00011077,2]
[344849126,1733833832714,-500.0,0.00011077,2]
[344849127,1733833832723,-500.0,0.00011077,2]
[344849128,1733833832732,-1328.07,0.00011077,2]
[344849129,1733833832742,-500.0,0.00011077,2]
[344849130,1733833832751,-500.0,0.00011077,2]
[344849131,1733833832760,-500.0,0.00011077,2]
[344849132,1733833832770,-802.59,0.00011077,2]
[344849133,1733833832779,-500.0,0.00011077,2]
[344849134,1733833832788,-500.0,0.00011077,2]
[344849135,1733833832798,-500.0,0.00011077,2]
[344849136,1733833832807,-500.0,0.00011077,2]
[344849138,1733833832816,-500.0,0.00011077,2]
[344849140,1733833832826,-904.378,0.00011078,2]
[344849141,1733833832835,-2614.57768575,0.00011078,2]
[344849145,1733833832859,-864.71912352,0.00011078,2]
[344849150,1733833838141,-285.7224026,9.981e-05,2]
[344849151,1733833838151,-162.23550458,0.00011073,2]
[344849152,1733833838164,-337.76449542,0.00011073,2]
[344849153,1733833838174,-3392.23550458,0.00011078,2]
[344849154,1733833838368,-7424.09349619,0.00011078,2]
[344849155,1733833838380,-1024.70591123,0.00011078,2]
[344849162,1733833840416,-11928.8124012,0.00011078,2]
[344849163,1733833840536,-251.7370891,0.00011078,2]
[344849164,1733833840756,-1954.364141,0.00011078,2]
[344849174,1733833843331,-285.72240259,0.00010013,2]
[344849175,1733833843342,-443.87442872,0.00011078,2]
[344849183,1733833846265,-9753.9,0.00011078,2]
[344849184,1733833846315,-11194.4999999,0.00011078,2]
[344849185,1733833846421,-548.00000132,0.00011078,2]
[344849186,1733833846671,-1310.11581492,0.00011078,2]
[344849187,1733834036716,3544.7,0.000188,120]
[344849188,1733834104881,200.0,0.00011078,30]
[344849189,1733834105203,200.0,0.00011653,30]
[344849190,1733834105572,200.0,0.00012228,30]
[344849191,1733834105914,200.0,0.00012803,30]
[344849192,1733834106262,200.0,0.00013377,30]
[344849193,1733834107118,200.0,0.00013952,30]
[344849195,1733834404906,156.0,0.00011078,30]
[344849196,1733834405220,156.0,0.0001172,30]
[344849197,1733834405611,156.0,0.00012363,30]
[344849198,1733834406109,156.0,0.00013005,30]
[344849199,1733834406815,156.0,0.00013648,30]
[344849202,1733834704371,156.0,0.00011078,30]
[344849203,1733834704696,156.0,0.00011988,30]
[344849204,1733834705693,156.0,0.00012898,30]
[344849205,1733834706022,156.0,0.00013809,30]
[344849208,1733835005431,156.0,0.00011078,30]
[344849209,1733835005749,156.0,0.00012443,30]
[344849210,1733835006103,156.0,0.00013809,30]
[344849225,1733835032435,-155.07,7.829e-05,2]
[344849227,1733835032445,-420.43,8.219e-05,2]
[344849229,1733835032454,-1000.0,9.53e-05,2]
[344849231,1733835032464,-200.0,9.623e-05,2]
[344849233,1733835032474,-2651.57,9.701e-05,2]
[344849235,1733835032487,-300.0,9.806e-05,2]
[344849237,1733835032497,-5866.61067226,9.807e-05,2]
[344849238,1733835032509,-1827.47777544,9.807e-05,2]
[344849239,1733835032725,-3289.0015523,9.807e-05,2]
[344849240,1733835032742,-250.0,9.855e-05,2]
[344849241,1733835032752,-334.57,9.863e-05,2]
[344849242,1733835032763,-824.74,9.889e-05,2]
[344849243,1733835032772,-400.0,9.9e-05,2]
[344849244,1733835032782,-2789.4755954,9.9e-05,2]
[344849245,1733835032791,-900.27,9.967e-05,2]
[344849246,1733835032801,-643.79,9.967e-05,2]
[344849247,1733835032811,-500.0,9.982e-05,2]
[344849248,1733835032822,-250.0,9.99e-05,2]
[344849249,1733835032834,-580.79,0.00010092,2]
[344849250,1733835032843,-334.57,0.00010228,2]
[344849251,1733835032853,-176.82,0.00010243,2]
[344849252,1733835032863,-2000.0,0.0001028,2]
[344849253,1733835032874,-168.12,0.00010305,2]
[344849254,1733835032883,-150.0,0.00010398,2]
[344849255,1733835032893,-420.43,0.00010459,2]
[344849256,1733835032903,-150.0,0.00010474,2]
[344849257,1733835032914,-150.99,0.00010475,2]
[344849259,1733835032924,-299.99,0.00010475,2]
[344849260,1733835032933,-999.99,0.00010475,2]
[344849261,1733835032942,-150.99,0.00010475,2]
[344849262,1733835032951,-4235.4628523,0.00010475,2]
[344849263,1733835032962,-5764.5271477,0.00010475,2]
[344849264,1733835032972,-3653.26356076,0.00010475,2]
[344849265,1733835032994,-5477.16643924,0.00010475,2]
[344849266,1733835033003,-428.59,0.00010478,2]
[344849267,1733835033013,-400.0,0.000105,2]
[344849268,1733835033023,-294.22,0.00010538,2]
[344849270,1733835033032,-286.219,0.0001055,2]
[344849272,1733835033042,-334.57,0.00010593,2]
[344849276,1733835033052,-150.0,0.000106,2]
[344849278,1733835033063,-1000.0,0.00010721,2]
[344849282,1733835033074,-420.0,0.00010787,2]
[344849284,1733835033084,-1987.4928,0.00010833,2]
[344849287,1733835033095,-5000.0,0.00010876,2]
[344849290,1733835033106,-711.2428,0.00010877,2]
[344849292,1733835033116,-263.85317033,0.00010878,2]
[344849294,1733835033127,-150.0,0.000109,2]
[344849296,1733835033137,-38096.64579043,0.00010934,2]
[344849341,1733835038441,-540.73409816,0.00010934,2]
[344849342,1733835038453,-724.000035,0.00010934,2]
[344849343,1733835038503,-4579.6151759,0.00010934,2]
[344849344,1733835038514,-8950.1344782,0.00010934,2]
[344849345,1733835038616,-9751.89555878,0.00010934,2]
[344849346,1733835038627,-11262.06565,0.00010934,2]
[344849347,1733835038676,-2846.19051014,0.00010934,2]
[344849348,1733835038687,-7357.2347,0.00010934,2]
[344849349,1733835038698,-2388.6000052,0.00010934,2]
[344849350,1733835038709,-3163.16651691,0.00010934,2]
[344849351,1733835038739,-269383.81365834,0.00010934,2]
[344849352,1733835038749,-334.57,0.00010958,2]
[344849353,1733835038759,-500.0,0.00010958,2]
[344849354,1733835038768,-305.60106309,0.00010958,2]
[344849355,1733835038778,-500.0,0.00010958,2]
[344849356,1733835038787,-500.0,0.00010958,2]
[344849357,1733835038796,-500.0,0.00010958,2]
[344849358,1733835038806,-1026.825,0.00010959,2]
[344849359,1733835038817,-500.86423849,0.00010973,2]
[344849360,1733835038828,-500.0,0.00010973,2]
[344849361,1733835038843,-200.0,0.00010973,2]
[344849362,1733835038853,-200.0,0.00010974,2]
[344849364,1733835038863,-500.0,0.00010975,2]
[344849365,1733835038871,-500.0,0.00010975,2]
[344849366,1733835038882,-500.0,0.00010975,2]
[344849367,1733835038891,-500.0,0.00010975,2]
[344849368,1733835038900,-500.0,0.00010975,2]
[344849369,1733835038913,-500.0,0.00010975,2]
[344849371,1733835038923,-500.0,0.00010975,2]